Cogmind - Beta 14 @@@ ROGUE MODE // 2024.10.20 @ 22:02:28 Player: Udabudha Result: Destroyed by D-53 Grenadier with Mini Grenade Launcher Performance ------------- Evolutions (0) 0 Regions Visited (0) 0 Robots Destroyed (0) 0 Value Destroyed (0) 0 Prototype IDs (0) 0 Alien Tech Used (0) 0 Bonus (0) 0 TOTAL SCORE: 0 Bonus ------- None Cogmind --------- Core Integrity 0/250 Matter 86/300 Energy 100/100 System Corruption 0% Temperature Cool (20) Movement Walking (120) Location -11/Scrapyard Parts ------- > --- POWER (1) -------- (None) > --- PROPULSION (2) --- Aluminum Leg Aluminum Leg > --- UTILITY (2) ------ (None) > --- WEAPON (2) ------- Light Assault Rifle > --- INVENTORY (5) ---- Light Assault Rifle Mining Laser Peak State ------------ > --- POWER ------------ Ion Engine > --- PROPULSION ------- Aluminum Leg Aluminum Leg > --- UTILITY ---------- Improved Terrain Scanner > --- WEAPON ----------- Assault Rifle Light Assault Rifle > --- INVENTORY -------- Light Assault Rifle Mining Laser [Rating: 8] Favorites ----------- Power Ion Engine Engine Ion Engine Propulsion Aluminum Leg Leg Aluminum Leg Utility Improved Terrain Scanner Device Improved Terrain Scanner Weapon Light Assault Rifle Ballistic Gun Light Assault Rifle Build | -11 ------- Run | Yrd Slots Evolved . | . Power . | . Propulsion . | . Utility . | . Weapon . | . Parts Attached 7 | 7 Power 1 | 1 Engine 1 | 1 Core . | . Reactor . | . Propulsion 2 | 2 Treads . | . Leg 2 | 2 Wheel . | . Hover . | . Flight . | . Utility 1 | 1 Device 1 | 1 Storage . | . Processor . | . Hackware . | . Protection . | . Artifact . | . Weapon 3 | 3 Energy Gun . | . Energy Cannon . | . Ballistic Gun 3 | 3 Ballistic Cannon . | . Launcher . | . Special Weapon . | . Impact Weapon . | . Slashing Weapon . | . Piercing Weapon . | . Special Melee Weapon . | . Unidentified Prototypes . | . Parts Lost 3 | 3 Power 1 | 1 Propulsion . | . Utility 1 | 1 Weapon 1 | 1 Highest Loss Streak 3 | 3 To Critical Strikes . | . Average Slot Usage (%) . | . Peak Build Rating 8 | 8 Average Rating . | . On Entrance . | . Naked Turns . | . Heaviest Build 9 | 9 Greatest Support 20 | 20 Greatest Overweight (x) . | . Average Overweight (x) . | . Largest Inventory Capacity 5 | 5 Average Capacity 5 | 5 Most Carried 5 | 5 Average Carried . | . Final Capacity 5 | 5 Final Carried 2 | 2 Class Distribution -------------------- None Dominant Class ---------------- None Resources | -11 ----------- Run | Yrd Matter Collected 89 | 89 Remotely . | . Salvage Created 27 | 27 Parts . | . Haulers Intercepted . | . Recyclers Shooed . | . Parts Field Recycled . | . Retrieved Matter . | . Parts Self-Destructed . | . Prevented . | . Kills | -11 ------- Run | Yrd Combat Hostiles Destroyed 2 | 2 Guns 2 | 2 Classes Destroyed 1 | 1 Assembled 2 | 2 Best Kill Streak 2 | 2 Combat Bots Only 2 | 2 Max Kills in Single Turn 1 | 1 Gunslinging . | . Exploded . | . Melee . | . Uniques/NPCs Destroyed . | . Combat | -11 -------- Run | Yrd Hostile Shots Fired 36 | 36 Missed 12 | 12 Damage Taken 502 | 502 Core 252 | 252 Absorbed by Shields . | . Core Remaining (%) . | . Volleys Fired 12 | 12 Largest 2 | 2 Hottest 40 | 40 Shots Fired 24 | 24 Gun 24 | 24 Cannon . | . Launcher . | . Special . | . Kinetic 24 | 24 Thermal . | . Explosive . | . Electromagnetic . | . Robot Hit Streak 7 | 7 Robot Miss Streak 4 | 4 Penetration Max . | . Secondary Targets 1 | 1 Max Gunslinging Chain 1 | 1 Shots Hit Robots 12 | 12 Core Hits 6 | 6 Critical Kills . | . Critical Parts Destroyed . | . Critical Strikes . | . Melee Attacks . | . Impact . | . Slashing . | . Piercing . | . Sneak Attacks . | . Combat Hostiles . | . Follow-up Attacks . | . Damage Inflicted 121 | 121 Guns 121 | 121 Cannons . | . Explosions . | . Melee . | . Ramming . | . Kinetic 121 | 121 Thermal . | . Explosive . | . Electromagnetic . | . Impact . | . Slashing . | . Piercing . | . Highest Corruption . | . Average Corruption . | . Corruption Purged . | . Corruption Blocked . | . Overload Shots . | . Overflow Damage . | . Projectiles . | . Explosions . | . Melee . | . Knockbacks . | . Impact . | . Kinetic . | . Secondary . | . Self-Inflicted Damage . | . Shots . | . Rammed . | . Targets Rammed . | . Kicked . | . Crushed . | . Highest Temperature 20 | 20 Average Temperature 8 | 8 Received Heat Transfer 80 | 80 Siege Activations . | . Robots Corrupted . | . Combat Hostiles . | . Parts Fried . | . Impact Corruptions . | . Robots Melted . | . Combat Hostiles . | . Parts Melted . | . Heat Transferred . | . Parts Sabotaged . | . Parts Stolen . | . Parts Stripped . | . Power Chain Reactions . | . Alert | -11 ------- Run | Yrd Peak Influence 50 | 50 Initial . | . Average . | . Maximum Alert Level . | . Low Security (%) 100 | 100 Level 1 . | . Level 2 . | . Level 3 . | . Level 4 . | . Level 5 . | . High Security . | . Max Security . | . Squads Dispatched . | . Investigation . | . Extermination . | . Reinforcement . | . Assault . | . Garrison . | . Intercept . | . Searches Triggered . | . Construction Impeded . | . Haulers Reinforced . | . Active Scanning Responses . | . Cargo Convoy Interrupts . | . Stealth | -11 --------- Run | Yrd Distress Signals . | . Communications Jammed . | . Distress Signals . | . Times Spotted 11 | 11 Peak Tracking Total 4 | 4 Tactical Retreats 3 | 3 Traps | -11 ------- Run | Yrd Traps Triggered . | . Indirectly . | . Trap Hack Attempts . | . Triggered . | . Disarmed . | . Reprogrammed . | . Reused . | . Traps Extracted . | . Installed . | . Triggered . | . Machines | -11 ---------- Run | Yrd Machines Disabled . | . Max in Single Turn . | . Machines Repaired . | . Machines Dismantled . | . Machines Sabotaged . | . Overloaded Fab Kills . | . Hacking | -11 --------- Run | Yrd Machines Accessed . | . Terminals . | . Fabricators . | . Repair Stations . | . Recycling Units . | . Scanalyzers . | . Garrison Access . | . Total Hacks . | . Successful . | . Failed . | . Catastrophic . | . Database Lockouts . | . Manual . | . Terminals . | . Fabricators . | . Repair Stations . | . Recycling Units . | . Scanalyzers . | . Garrison Access . | . Terminal Hacks . | . Fabricator Hacks . | . Repair Station Hacks . | . Recycling Unit Hacks . | . Scanalyzer . | . Garrison Access Hacks . | . Unauthorized Hacks . | . Terminals . | . Fabricators . | . Repair Stations . | . Recycling Units . | . Scanalyzers . | . Garrison Access . | . Data Cores Recovered . | . Used . | . Hacking Detections . | . Full Trace Events . | . Feedback Events . | . Feedback Blocked . | . Robot Schematics Acquired . | . Robots Built . | . Authchips . | . Time . | . Total Robot Build Rating . | . Part Schematics Acquired . | . Parts Built . | . Authchips . | . Time . | . Total Part Build Rating . | . Parts Repaired . | . Time . | . Parts Recycled . | . Recycled Matter . | . Retrieved Matter . | . Retrieved Components . | . Parts Scanalyzed . | . Part Schematics Acquired . | . Parts Damaged . | . Bothacking | -11 ------------ Run | Yrd Used RIF Installer . | . Robots Hacked . | . Non-combat . | . Combat . | . Robot Hacks Applied . | . Relay Couplers Released . | . Fabnet Peak Effective % . | . Robots Rewired . | . Allies Hacked . | . Hacks Repelled . | . Allies | -11 -------- Run | Yrd Total Allies . | . Largest Group . | . Highest-Rated Group . | . Highest-Rated Ally . | . Total Orders . | . Ally Attacks . | . Total Damage . | . Kills . | . Allies Corrupted . | . Allies Melted . | . Intel | -11 ------- Run | Yrd Robot Analysis Total . | . Derelict Logs Recovered . | . Drone Launches . | . Drone Recoveries . | . Exploration | -11 ------------- Run | Yrd Turns Passed 4147 | 4147 Spaces Moved 116 | 116 Core 91 | 91 Treads . | . Legs 25 | 25 Wheels . | . Hover . | . Flight . | . Fastest Speed 50 | 50 Average Speed 65 | 65 Slowest Speed 120 | 120 Overloaded Moves . | . Propulsion Burnouts . | . Robots Hopped . | . Cave-ins Triggered . | . Exploration Rate (%) 19 | 19 Regions Visited . Branch Regions . Pre-discovered Areas . | . Known Exits Taken . | . Unknown Exits Taken . | . Scrap Searched . | . Spaces Dug . | . Terrain Destroyed . | . Melee . | . Projectile . | . AOE . | . Terrain Rammed . | . Walls Destroyed . | . Machines Disabled . | . Actions | -11 --------- Run | Yrd Total 4164 | 4164 Wait 4023 | 4023 Move 116 | 116 Hop . | . Pick Up 6 | 6 Fast Attach 2 | 2 Attach 4 | 4 Detach . | . Swap 1 | 1 Drop . | . Fire 12 | 12 Melee . | . Ram . | . Kick . | . Crush . | . Escape Stasis . | . Rewire . | . Trap . | . Miscellaneous . | . Route ------- -11/Scrapyard (discovered 1 exit: [*Mat]) History --------- Turn | Location | Event 4009 | -11/Scrapyard | Assembled infested the area 4024 | -11/Scrapyard | Core integrity fell below 50% 4068 | -11/Scrapyard | Discovered new exit (range 14) 4145 | -11/Scrapyard | Core integrity fell below 20% 4148 | -11/Scrapyard | Destroyed by D-53 Grenadier with Mini Grenade Launcher Last Messages --------------- Acquired Assault Rifle. The unstable cave ceiling collapses. K-01 Serf collects debris. Acquired Ion Engine. K-01 Serf collects debris. Acquired 52 matter. K-01 Serf collects debris. Acquired 37 matter. K-01 Serf collects debris. as-64109 destroyed. The unstable cave ceiling collapses. K-01 Serf collects debris. as-14947 destroyed. Switching to secondary target: as-31976. Imp. Terrain Scanner destroyed. K-01 Serf destroyed. K-01 Serf collects debris. The unstable cave ceiling collapses. Assault Rifle destroyed. Ion Engine destroyed. Map ----- +----------------------------------------------------+ | ?????????????????????????????????????????????????? | | ????????????????????????????????????#????????????? | | ?????????????????????????????????????????????????? | | ?????????????????????????????????????????????????? | | ?????????????????#???????????????????????????????? | | ?????????????????# ????##########?????? ?????????? | | ?????????????????# ???# #????????? #???? | | ????????????## ??# ??# #?????? #???? | | ????????????# ## ### = ##### ??? | | ?????????? % ! * % ??? | | ????????????# % % #???? | | ????????????# ### ## % ##### < #???? | | ??????????? ##????# ==a ##????? % ????? | | ??????????????????# # #??????#?????????? | | ??????????????????# # ##????????????????? | | ??????????????????# ## # ##?????#??#????????? | | ??????????????????# ?# #??????????????????? | | ??????????????????# ??# #??????????????????? | | ??????????????????# ??# #######????????????? | | ??????????????????# ??# #a #????????????? | | ??????????????????# ??### #????????????? | | ??????????????????###?## # a #????????????? | | ?????????????????????## #????????????? | | ????????????????###### #????????????? | | ????????????????# #????????????? | | ?????????????# @ # ########?????????? | | ???????????# %d #?????????? | | ????????????# #?????????? | | ???????????# d # #?????????? | | ???????????# # #?????????? | | ????????????# ## # # #?????????? | | ???????????????## #?????????? | | ????????????????# # # #?????????? | | ????????????????## # # #?????????? | | ????????????????########### ###########?????????? | | ????????????????# # ###########????????? | | ????????????????# ???????? | | ????????????????# # ???????? | | ????????????????# # ### #######????????? | | ????????????????# ## ##??? ?????????????? | | ????????????????# ## #????? ???????????? | | ????????????????# ## #?????? ??????????? | | ????????????????# ## #??????? #?????????? | | ????????????????# ## #???????? ??????????? | | ????????????????##### ##### #???????????????????? | | ??????????????????# #???????????????????? | | ??????????????????######### ###??????????????????? | | ??????????????????????# #??????????????????? | | ?????????????????????# #??????????????????? | | ?????????????????????# #??????????????????? | +----------------------------------------------------+ Best States ------------- Heat Dissipation 25 Energy Generation 10 Energy Capacity 250 Matter Stores 111 Matter Capacity 300 Sight Range 16 Terrain Scan Range 16 Terrain Scan Density 10 Evasion (%) 55 Item Schematics ----------------- None Robot Schematics ------------------ None Fabricated ------------ Nothing Alien Tech Used ----------------- None Achievements -------------- Curiosity Killed The Cat Challenges ------------ None Game ------ Seed MappingGuidedMeganuke Manual? 0 Play Time 00:10:14 Cumulative 3.1 hours Start 2024.10.20 @ 21:56:34 End 2024.10.20 @ 22:02:28 Sessions 0 Manual Loads 0 Difficulty Rogue Special Mode None Game No. 9 Rogue 6 Adventurer 1 Explorer 2 Win Type - Total 0 Types 0/0/0/0/0/0/0/0/0 Lore% 8 Gallery% 11 Achievement% 14 Wizard Run 0 Options --------- Layout 2 ASCII 0 Keyboard 0 Movement Numpad Keybinds 0 Fullscreen 1 Font 48/Smallcaps Map View 50x44 Zoom Use 0% Tactical HUD 0 Map Filters NONE Filters NONE Steam 1 RUN: a1c566b8-dd36-4cf9-a8eb-558cd0246169